bitfinex-derivatives/quotes_BTCF0:USTF0_20251002
["timestamp","ask_amount","ask_price","bid_price","bid_amount"]
[1759413090598,1.97550131,119750.0,119740.0,0.002]
[1759413091302,0.03433,119730.0,119720.0,0.3608]
[1759413091487,1.21236235,119730.0,119720.0,0.3608]
[1759413092087,1.21236235,119730.0,119710.0,0.3608]
[1759413092088,1.21466131,119730.0,119710.0,0.3608]
[1759413092294,1.21466131,119730.0,119720.0,0.3608]
[1759413092493,0.80942896,119730.0,119720.0,0.38376]
[1759413092799,1.19617896,119730.0,119720.0,0.39758]
[1759413093196,1.61466131,119730.0,119720.0,0.38376]
[1759413093500,1.20942896,119730.0,119720.0,0.38376]
[1759413093694,1.61466131,119730.0,119720.0,0.38376]
[1759413094098,1.68010948,119730.0,119720.0,0.39076]
[1759413094401,1.68010948,119730.0,119720.0,0.3678]
[1759413094697,0.90730948,119730.0,119720.0,0.3678]
[1759413094888,1.27487713,119730.0,119720.0,0.3678]
[1759413095089,1.68010948,119730.0,119720.0,0.3678]
[1759413095601,1.68010948,119730.0,119720.0,0.3618]
[1759413095901,1.6805138,119730.0,119720.0,0.002]
[1759413097003,1.68091812,119730.0,119720.0,0.002]
[1759413097395,0.90811812,119730.0,119720.0,0.002]
[1759413097596,1.68095812,119730.0,119720.0,0.002]
[1759413097796,1.68129896,119730.0,119720.0,0.002]
[1759413098096,1.70143512,119730.0,119720.0,0.002]
[1759413098502,0.52336277,119730.0,119720.0,0.002]
[1759413098696,1.70243512,119730.0,119720.0,0.3608]
[1759413098896,0.90945896,119730.0,119720.0,0.3608]
[1759413099098,1.68225896,119730.0,119720.0,0.3608]
[1759413099399,1.28225896,119730.0,119720.0,0.3608]
[1759413099607,0.08997661,119730.0,119720.0,0.39758]
[1759413099803,0.86381661,119730.0,119720.0,0.39758]
[1759413100103,1.68229896,119730.0,119720.0,0.3608]
[1759413100306,1.62875953,119730.0,119720.0,0.3608]
[1759413100606,1.22775953,119730.0,119720.0,0.3608]
[1759413100998,0.03433,119720.0,119710.0,0.3608]
[1759413101201,0.38602292,119720.0,119710.0,0.3608]
[1759413101608,1.15882292,119720.0,119710.0,0.3608]
[1759413101804,1.16227136,119720.0,119710.0,0.3608]
[1759413102103,0.03433,119710.0,119700.0,0.3608]
[1759413102306,0.03433,119710.0,119700.0,0.39758]
[1759413102307,0.79392,119710.0,119700.0,0.39758]
[1759413102698,0.80717,119710.0,119700.0,0.3608]
[1759413102899,1.17048467,119710.0,119700.0,0.3608]
[1759413103100,1.25397937,119710.0,119700.0,0.3608]
[1759413103409,0.1045817,119700.0,119690.0,0.39758]
[1759413103706,0.10843406,119700.0,119690.0,0.39758]
[1759413104295,0.08735406,119700.0,119690.0,0.8810887]
[1759413104505,0.00385236,119700.0,119690.0,1.23278162]
[1759413104700,0.0834899,119720.0,119710.0,0.1202746]
[1759413104904,0.0834899,119720.0,119710.0,0.8418746]
[1759413105103,0.0834899,119720.0,119710.0,1.2418746]
[1759413105409,0.4390499,119720.0,119710.0,1.15838]
[1759413106507,0.4390499,119720.0,119710.0,1.16738]
[1759413107608,0.4601299,119720.0,119710.0,0.75838]
[1759413107908,1.18587282,119720.0,119710.0,0.006]
[1759413108405,0.1045699,119720.0,119710.0,0.04149]
[1759413108604,0.8773699,119720.0,119710.0,0.40229]
[1759413108802,0.8773699,119720.0,119710.0,0.39629]
[1759413109006,0.8773699,119720.0,119710.0,0.04149]
[1759413109206,0.8911199,119720.0,119710.0,0.40229]
[1759413109401,0.8911199,119720.0,119710.0,0.38951]
[1759413109612,0.8911199,119720.0,119710.0,0.02871]
[1759413109916,1.24281282,119720.0,119710.0,0.02571]
[1759413110210,0.1183199,119720.0,119710.0,0.02871]
[1759413110607,0.8773699,119720.0,119710.0,0.40229]
[1759413110913,0.1045699,119720.0,119710.0,0.40229]
[1759413111109,0.8773699,119720.0,119710.0,0.39629]
[1759413111412,1.60361282,119720.0,119710.0,0.02271]
[1759413112229,0.0834899,119720.0,119710.0,0.39629]
[1759413112518,0.8562899,119720.0,119710.0,0.39629]
[1759413112721,0.8790199,119720.0,119710.0,0.39629]
[1759413113118,0.88019808,119720.0,119710.0,0.40229]
[1759413113422,0.85746808,119720.0,119710.0,0.40229]
[1759413113724,0.08466808,119720.0,119710.0,0.80529]
[1759413113921,0.88019808,119720.0,119710.0,0.81129]
[1759413114316,0.88019808,119720.0,119710.0,0.79629]
[1759413114517,0.88019808,119720.0,119710.0,0.80229]
[1759413114712,1.245641,119720.0,119710.0,0.006]
[1759413114927,1.645641,119720.0,119710.0,0.006]
[1759413115624,0.1062244,119710.0,119700.0,0.39629]
[1759413116021,0.10740258,119710.0,119700.0,0.39629]
[1759413116221,0.10740258,119710.0,119700.0,0.44052133]
[1759413116423,0.77393818,119710.0,119700.0,0.52402273]
[1759413116622,0.85743258,119710.0,119700.0,0.84052133]
[1759413116925,0.85743258,119710.0,119700.0,0.84652133]
[1759413117124,0.85743228,119710.0,119700.0,0.93002243]
[1759413117317,0.85743228,119710.0,119700.0,0.8797911]
[1759413117521,0.85743228,119710.0,119700.0,0.8857911]
[1759413117721,0.00159962,119710.0,119700.0,0.8857911]
[1759413117922,0.00159962,119710.0,119700.0,1.23748402]
[1759413118530,0.00159962,119710.0,119700.0,1.23148402]
[1759413118726,0.00159962,119710.0,119700.0,1.24348402]
[1759413118923,0.00159962,119710.0,119700.0,1.23148402]
[1759413119124,0.00159962,119710.0,119700.0,1.3032048]
[1759413119323,0.65572,119720.0,119710.0,0.11708906]
[1759413119522,0.0834838,119730.0,119720.0,0.03549]
[1759413119725,0.8562038,119730.0,119720.0,0.44099396]
[1759413119927,0.0834838,119730.0,119720.0,0.84099396]
[1759413120130,0.8562038,119730.0,119720.0,0.84099396]
[1759413120332,0.8562038,119730.0,119720.0,0.92448176]
[1759413120733,0.8789338,119730.0,119720.0,0.84099396]
[1759413120946,0.8789338,119730.0,119720.0,0.44099396]
[1759413121837,0.8789338,119730.0,119720.0,0.39629]
[1759413122329,0.8926838,119730.0,119720.0,0.38951]
[1759413122528,1.64437672,119730.0,119720.0,0.3608]
[1759413122732,1.64437672,119730.0,119720.0,0.3668]
[1759413122935,1.2926838,119730.0,119720.0,0.38951]
[1759413123233,1.2926038,119730.0,119720.0,0.38951]
[1759413123434,0.8788538,119730.0,119720.0,0.40229]
[1759413123733,0.1062138,119730.0,119720.0,0.40229]
[1759413123935,0.8788538,119730.0,119720.0,0.40229]
[1759413126828,1.24429672,119730.0,119720.0,0.38951]
[1759413127026,1.24541375,119730.0,119720.0,0.38951]
[1759413127226,1.64541375,119730.0,119720.0,0.006]
[1759413128035,0.87277375,119730.0,119720.0,0.02871]
[1759413128238,1.64533375,119730.0,119720.0,0.3668]
[1759413128534,1.64533375,119730.0,119720.0,0.006]
[1759413128831,0.1199678,119720.0,119710.0,0.38351]
[1759413129041,0.1062247,119710.0,119700.0,0.39629]
[1759413129333,0.1062247,119710.0,119700.0,0.4797917]
[1759413129736,0.02273,119710.0,119700.0,0.53951248]
[1759413129932,0.10733953,119720.0,119710.0,0.1189847]
[1759413130128,0.67293953,119720.0,119710.0,0.39629]
[1759413130530,0.87985953,119720.0,119710.0,0.39629]
[1759413130933,0.87989953,119720.0,119710.0,0.39629]
[1759413131832,0.89364953,119720.0,119710.0,0.39629]
[1759413132024,1.24534245,119720.0,119710.0,0.38951]
[1759413132223,1.24534245,119720.0,119710.0,0.3668]
[1759413132533,1.24534245,119720.0,119710.0,0.006]
[1759413132935,0.1062247,119710.0,119700.0,0.44323078]
[1759413133238,0.1062247,119710.0,119700.0,0.45601078]
[1759413133534,0.88007442,119710.0,119700.0,0.53951248]
[1759413133734,0.88028711,119710.0,119700.0,0.53951248]
[1759413133933,0.88028711,119710.0,119700.0,0.39629]
[1759413134330,0.8804998,119710.0,119700.0,0.40229]
[1759413135131,0.8804998,119710.0,119700.0,0.41129]
[1759413135732,0.8805398,119710.0,119700.0,0.40529]
[1759413136035,0.8805398,119710.0,119700.0,0.39251]
[1759413136239,1.64622884,119710.0,119700.0,0.009]
[1759413136437,0.0835008,119700.0,119690.0,0.3608]
[1759413136636,0.1199808,119700.0,119690.0,0.3608]
[1759413137031,0.1062308,119700.0,119690.0,0.39629]
[1759413137231,0.10847814,119700.0,119690.0,0.39629]
[1759413137530,0.10847814,119700.0,119690.0,0.4797981]
[1759413137531,0.94793878,119700.0,119690.0,0.4797981]
[1759413137731,0.94793878,119700.0,119690.0,0.54251888]
[1759413138030,0.94793878,119700.0,119690.0,0.39929]
[1759413138236,0.94793878,119700.0,119690.0,0.4827988]
[1759413138431,0.92520878,119700.0,119690.0,0.4797988]
[1759413138638,0.92520878,119700.0,119690.0,0.4857988]
[1759413139026,0.92524878,119700.0,119690.0,0.4857988]
[1759413139231,0.85826814,119700.0,119690.0,0.4857988]
[1759413139430,0.08574814,119700.0,119690.0,0.4947988]
[1759413139640,0.85822814,119700.0,119690.0,0.41129]
[1759413140137,0.85822814,119700.0,119690.0,0.40529]
[1759413140436,0.88051814,119700.0,119690.0,0.40529]
[1759413140636,0.88051814,119700.0,119690.0,0.46501078]
[1759413140835,0.88055814,119700.0,119690.0,0.46501078]
[1759413141937,0.85826814,119700.0,119690.0,0.54851938]
[1759413142331,0.85826814,119700.0,119690.0,1.2912123]
[1759413142332,0.00228734,119700.0,119690.0,1.2912123]
[1759413142535,0.08578894,119700.0,119690.0,1.24949152]
[1759413142731,0.08578914,119700.0,119690.0,1.30911482]
[1759413142932,0.08578914,119700.0,119690.0,0.9574219]
[1759413143135,0.08578914,119700.0,119690.0,0.9394219]
[1759413143136,0.00228734,119700.0,119690.0,0.9394219]
[1759413143332,0.00228734,119700.0,119690.0,1.30911482]
[1759413143841,0.08578894,119700.0,119690.0,1.30911482]
[1759413144032,0.08622324,119700.0,119690.0,1.30311482]
[1759413144433,0.08665744,119700.0,119690.0,1.30311482]
[1759413144640,0.08665744,119700.0,119690.0,1.24349152]
[1759413145232,0.00315584,119700.0,119690.0,1.24349152]
[1759413145432,0.00315584,119700.0,119690.0,0.8917986]
[1759413145632,0.00315584,119700.0,119690.0,1.24349152]
[1759413145827,0.00343682,119700.0,119690.0,1.31894133]
[1759413146039,0.08693852,119700.0,119690.0,1.31894133]
[1759413146340,0.08693852,119700.0,119690.0,0.96724841]
[1759413147342,0.10959852,119700.0,119690.0,0.96724841]
[1759413147840,0.10959852,119700.0,119690.0,0.8917986]
[1759413148441,0.00343682,119700.0,119690.0,0.95141653]
[1759413148936,0.00343682,119700.0,119690.0,1.30310945]
[1759413149541,4e-05,119710.0,119700.0,0.1183016]
[1759413149743,4e-05,119710.0,119700.0,0.83079452]
[1759413150235,4e-05,119710.0,119700.0,1.67860433]
[1759413150440,0.0835346,119710.0,119700.0,1.67860433]
[1759413151137,4e-05,119710.0,119700.0,1.68760433]
[1759413151532,4e-05,119710.0,119700.0,2.08760433]
[1759413151937,4e-05,119710.0,119700.0,1.73591141]
[1759413152132,4e-05,119710.0,119700.0,2.08760433]
[1759413152339,4e-05,119710.0,119700.0,2.14717961]
[1759413152643,4e-05,119710.0,119700.0,2.0717298]
[1759413154045,4e-05,119710.0,119700.0,2.08010718]
[1759413154235,4e-05,119710.0,119700.0,1.72003688]
[1759413154435,4e-05,119710.0,119700.0,2.0717298]
[1759413154839,4e-05,119710.0,119700.0,2.01211452]
[1759413155045,0.00118948,119710.0,119700.0,2.01211452]
[1759413155546,0.08468408,119710.0,119700.0,1.23979452]
[1759413155743,0.08468408,119710.0,119700.0,1.6603416]
[1759413155944,0.08468408,119710.0,119700.0,2.01203452]
[1759413156656,0.00118948,119710.0,119700.0,2.01203452]
[1759413156945,0.00118948,119710.0,119700.0,2.08748433]
[1759413157145,0.08468408,119710.0,119700.0,2.08748433]
[1759413157348,0.08468408,119710.0,119700.0,1.31524433]
[1759413157547,0.08468408,119710.0,119700.0,2.08748433]
[1759413157943,0.08468408,119710.0,119700.0,2.01203452]
[1759413158349,0.08468408,119710.0,119700.0,2.01199452]
[1759413158643,0.00118948,119710.0,119700.0,2.01199452]
[1759413159249,0.00118948,119710.0,119700.0,1.23979452]
[1759413159444,0.00118948,119710.0,119700.0,1.61195452]
[1759413159844,0.00118948,119710.0,119700.0,1.68740433]
[1759413161145,0.00162635,119710.0,119700.0,1.68740433]
[1759413162152,4e-05,119720.0,119710.0,0.11627326]
[1759413162340,4e-05,119720.0,119710.0,0.95687427]
[1759413163047,4e-05,119720.0,119710.0,0.88142446]
[1759413163251,0.0835278,119720.0,119710.0,0.88142446]
[1759413163844,0.0835278,119720.0,119710.0,0.47707326]
[1759413164049,0.0835278,119720.0,119710.0,1.65346446]
[1759413164644,0.0835278,119720.0,119710.0,1.66546446]
[1759413164846,0.0835278,119720.0,119710.0,1.26111326]
[1759413165042,0.0835278,119720.0,119710.0,1.66546446]
[1759413165247,0.0835278,119720.0,119710.0,1.74091427]
[1759413165445,0.0835278,119720.0,119710.0,0.88740101]
[1759413165645,0.1061878,119720.0,119710.0,0.48304981]
[1759413165850,0.1061878,119720.0,119710.0,1.65940101]
[1759413166347,0.84372087,119720.0,119710.0,0.4076]
[1759413166557,1.16733394,119720.0,119710.0,0.07154885]
[1759413167146,1.93929394,119720.0,119710.0,0.07154885]
[1759413167751,1.93929394,119720.0,119710.0,0.012]
[1759413168151,2.30009394,119720.0,119710.0,0.07154885]
[1759413168453,2.05751282,119720.0,119710.0,0.07154885]
[1759413169353,2.46215784,119720.0,119710.0,1e-07]
[1759413169554,4.15599784,119720.0,119710.0,1e-07]
[1759413170356,0.1186957,119680.0,119670.0,0.05962476]
[1759413170552,1.29522072,119680.0,119670.0,0.05962476]
[1759413170758,1.69522072,119680.0,119670.0,7.591e-05]
[1759413171258,2.09986574,119680.0,119670.0,7.591e-05]
[1759413171657,1.28414072,119680.0,119670.0,0.01207591]
[1759413171856,2.12188358,119680.0,119670.0,0.02407591]
[1759413172159,2.13007101,119680.0,119670.0,0.02407591]
[1759413172357,2.13007101,119680.0,119670.0,0.01207591]
[1759413172756,0.1187087,119660.0,119650.0,0.3608]
[1759413172953,0.1187087,119660.0,119650.0,0.38241]
[1759413173157,0.02188,119660.0,119650.0,0.88383072]
[1759413173456,0.774249,119660.0,119650.0,0.4791857]
[1759413173653,0.809429,119660.0,119650.0,0.39565]
[1759413173853,0.80950491,119660.0,119650.0,0.39565]
[1759413174256,0.80950491,119660.0,119650.0,0.41065]
[1759413174555,0.51012993,119660.0,119650.0,0.494186]
[1759413174760,0.87744491,119660.0,119650.0,0.494186]
[1759413175063,0.10548491,119660.0,119650.0,0.41065]
[1759413175257,0.10548491,119660.0,119650.0,0.494186]
[1759413175458,0.87744491,119660.0,119650.0,0.494186]
[1759413175856,0.08360491,119660.0,119650.0,0.89883102]
[1759413176153,0.10548491,119660.0,119650.0,0.41065]
[1759413176357,1.29538993,119660.0,119650.0,0.39741]
[1759413176755,1.69538993,119660.0,119650.0,0.3758]
[1759413176954,1.69538993,119660.0,119650.0,0.015]
[1759413177956,0.92342993,119660.0,119650.0,0.015]
[1759413178155,1.69538993,119660.0,119650.0,0.015]
[1759413178360,0.92342993,119660.0,119650.0,0.015]
[1759413178662,0.89074491,119660.0,119650.0,0.39741]
[1759413178867,1.29538993,119660.0,119650.0,0.41065]
[1759413179159,1.29538993,119660.0,119650.0,0.89882932]
[1759413179160,7.591e-05,119660.0,119650.0,0.89882932]
[1759413179351,0.67600321,119660.0,119650.0,0.89882932]
[1759413179858,0.67600321,119660.0,119650.0,0.4941843]
[1759413180062,0.69788321,119660.0,119650.0,0.41065]
[1759413180258,0.87744321,119660.0,119650.0,0.41065]
[1759413180464,0.87744321,119660.0,119650.0,0.4941844]
[1759413180852,0.87744321,119660.0,119650.0,0.41065]
[1759413181056,1.29538823,119660.0,119650.0,0.39741]
[1759413181255,1.29538823,119660.0,119650.0,0.3758]
[1759413181256,0.52342823,119660.0,119650.0,0.3758]
[1759413181457,1.28208823,119660.0,119650.0,0.41065]
[1759413181655,0.87744321,119660.0,119650.0,0.41065]
[1759413182262,1.28208823,119660.0,119650.0,0.41065]
[1759413182766,1.29538823,119660.0,119650.0,0.3758]
[1759413183166,1.28212823,119660.0,119650.0,0.41065]
[1759413183370,0.87748321,119660.0,119650.0,0.41065]
[1759413183567,0.51012823,119660.0,119650.0,0.41065]
[1759413183768,0.87744321,119660.0,119650.0,0.41065]
[1759413184069,0.10652316,119660.0,119650.0,0.4941844]
[1759413184265,0.00111586,119660.0,119650.0,1.29882942]
[1759413184565,0.10660481,119660.0,119650.0,0.8941843]
[1759413184868,0.10660481,119660.0,119650.0,0.41065]
[1759413185069,0.10668646,119660.0,119650.0,0.41065]
[1759413185367,0.51133148,119660.0,119650.0,0.41065]
[1759413185566,0.10668646,119660.0,119650.0,0.41065]
[1759413186068,0.10668646,119660.0,119650.0,0.4941843]
[1759413186265,0.00127916,119660.0,119650.0,0.4941843]
[1759413186564,0.69431916,119660.0,119650.0,1.29882932]
[1759413186965,0.77784646,119660.0,119650.0,1.29882932]
[1759413187165,0.79972646,119660.0,119650.0,0.8941843]
[1759413187562,0.79972646,119660.0,119650.0,0.41065]
[1759413187761,0.87868811,119660.0,119650.0,0.41065]
[1759413188264,0.02324081,119660.0,119650.0,0.4941843]
[1759413188469,0.00136081,119660.0,119650.0,0.89882932]
[1759413188668,0.71668081,119660.0,119650.0,0.89882932]
[1759413188971,0.77328081,119660.0,119650.0,0.89882932]
[1759413189567,0.77368767,119660.0,119650.0,0.89882932]
[1759413189866,0.00180767,119660.0,119650.0,0.89882932]
[1759413190663,0.00180767,119660.0,119650.0,1.29882932]
[1759413191966,0.00180767,119660.0,119650.0,1.38240292]
[1759413192166,0.0133,119700.0,119680.0,0.1183636]
[1759413192372,0.02188,119700.0,119690.0,0.88380162]
[1759413192567,0.16329819,119710.0,119700.0,0.1183496]
[1759413192568,0.61843819,119710.0,119700.0,0.1183496]
[1759413192871,0.61843819,119710.0,119700.0,0.39565]
[1759413193671,0.17187819,119710.0,119700.0,0.4791496]
[1759413194069,0.94367819,119710.0,119700.0,0.4791496]
[1759413194268,0.1153773,119710.0,119700.0,0.4791496]
[1759413194570,0.8652973,119710.0,119700.0,0.4791496]
[1759413194773,0.8871773,119710.0,119700.0,0.39565]
[1759413195069,1.29182232,119710.0,119700.0,0.39565]
[1759413195274,1.31412232,119710.0,119700.0,0.38241]
[1759413196368,1.38164505,119710.0,119700.0,0.3608]
[1759413196568,0.60984505,119710.0,119700.0,0.3608]
[1759413196770,0.60984505,119710.0,119700.0,0.38241]
[1759413197269,0.59654505,119710.0,119700.0,0.4791494]
[1759413197464,0.52902232,119710.0,119700.0,0.4791494]
[1759413197669,0.1243773,119710.0,119700.0,0.4791494]
[1759413198872,0.1243773,119710.0,119700.0,0.39565]
[1759413199067,0.54211232,119710.0,119700.0,0.3608]
[1759413199266,0.54211232,119710.0,119700.0,0.39451]
[1759413199479,0.1024973,119710.0,119700.0,0.4780094]
[1759413199680,0.1239073,119710.0,119700.0,0.4780094]
[1759413200576,0.04041,119710.0,119700.0,0.4780094]
[1759413200875,0.019,119710.0,119700.0,1.28265442]
[1759413201074,4e-05,119720.0,119710.0,0.0834926]
[1759413201283,0.1179686,119750.0,119740.0,0.1045417]
[1759413201467,0.1179686,119750.0,119740.0,0.8261417]
[1759413201868,0.04274524,119760.0,119750.0,0.0834647]
[1759413202069,0.12620304,119760.0,119750.0,0.38187]
[1759413202384,0.1179578,119760.0,119750.0,0.4653347]
[1759413202978,0.1179578,119760.0,119750.0,0.38187]
[1759413203181,0.18550575,119760.0,119750.0,0.38187]
[1759413203577,0.1179578,119760.0,119750.0,0.38187]
[1759413203774,0.02141,119760.0,119750.0,0.4653347]
[1759413204073,0.14996191,119770.0,119760.0,0.03485]
[1759413204271,0.14996191,119770.0,119760.0,0.39565]
[1759413204477,0.01309,119780.0,119760.0,0.4791078]
[1759413204675,0.1186138,119780.0,119770.0,0.38264]
[1759413204877,0.1186138,119780.0,119770.0,0.4660908]
[1759413205177,0.1055238,119780.0,119770.0,0.39565]
[1759413206180,0.1055238,119780.0,119770.0,0.4791006]
[1759413206678,0.0965235,119800.0,119780.0,0.1182902]
[1759413206878,0.1186035,119800.0,119790.0,0.74344]
[1759413207077,0.52324852,119800.0,119790.0,0.74344]
[1759413207383,0.52324852,119800.0,119790.0,0.7216]
[1759413207583,0.52324852,119800.0,119790.0,0.74344]
[1759413208388,0.006,119800.0,119790.0,1.24453182]
[1759413208681,0.0894299,119800.0,119790.0,0.75645]
[1759413209280,0.0894299,119800.0,119790.0,0.8398868]
[1759413209479,0.0834299,119800.0,119790.0,0.8398868]
[1759413209674,0.0894299,119800.0,119790.0,1.2398868]
[1759413209872,0.0894299,119800.0,119790.0,1.56109502]
[1759413210075,0.0904299,119800.0,119790.0,1.56109502]
[1759413210279,0.0904299,119800.0,119790.0,1.15645]
[1759413210682,0.0904299,119800.0,119790.0,1.56109502]
[1759413210883,0.0834299,119800.0,119790.0,1.56109502]
[1759413211080,0.0884299,119800.0,119790.0,1.56109502]
[1759413211279,0.0884299,119800.0,119790.0,1.64453182]
[1759413211478,0.0884299,119800.0,119790.0,1.56109502]
[1759413212782,0.0884299,119800.0,119790.0,1.15645]
[1759413213885,0.0884299,119800.0,119790.0,1.64453182]
[1759413213886,0.005,119800.0,119790.0,1.64453182]
[1759413214678,0.0884299,119800.0,119790.0,1.56109502]
[1759413215284,0.0884299,119800.0,119790.0,1.15645]
[1759413215478,0.0884299,119800.0,119790.0,0.75645]
[1759413215479,0.1232699,119800.0,119790.0,0.75645]
[1759413215886,0.52791492,119800.0,119790.0,0.75645]
[1759413216076,0.52791492,119800.0,119790.0,0.74344]
[1759413216279,0.1232699,119800.0,119790.0,0.74344]
[1759413216574,0.52791492,119800.0,119790.0,0.74344]
[1759413217282,0.92791492,119800.0,119790.0,0.3608]
[1759413217478,0.118278,119790.0,119780.0,0.38264]
[1759413217683,0.52292302,119790.0,119780.0,0.38264]
[1759413218384,0.52292302,119790.0,119780.0,0.3608]
[1759413218583,0.1182836,119780.0,119770.0,0.38264]
[1759413218788,0.52292862,119780.0,119770.0,0.38264]
[1759413218980,0.92292862,119780.0,119770.0,0.3608]
[1759413219180,0.1182905,119770.0,119760.0,0.38264]
[1759413219783,0.0834505,119770.0,119760.0,0.88375302]
[1759413219984,0.0834505,119770.0,119760.0,0.80029502]
[1759413220684,0.0834505,119770.0,119760.0,0.80429502]
[1759413220890,0.0834505,119770.0,119760.0,0.80829502]
[1759413221082,0.0834505,119770.0,119760.0,0.89175252]
[1759413221392,0.0834468,119780.0,119770.0,0.03485]
[1759413221578,0.0834468,119780.0,119770.0,0.39565]
[1759413221978,0.1055268,119780.0,119770.0,0.39565]
[1759413222390,0.1182868,119780.0,119770.0,0.39565]
[1759413222591,0.52293182,119780.0,119770.0,0.38364]
[1759413222790,0.92293182,119780.0,119770.0,0.38364]
[1759413222977,0.92293182,119780.0,119770.0,0.3618]
[1759413223690,0.92293182,119780.0,119770.0,0.38364]
[1759413223886,0.92293182,119780.0,119770.0,0.38264]
[1759413224085,0.92493182,119780.0,119770.0,0.38264]
[1759413224286,0.1095268,119780.0,119770.0,0.39565]
[1759413224485,0.87354708,119780.0,119770.0,0.38264]
[1759413224687,0.87354708,119780.0,119770.0,0.3608]
[1759413225691,0.1182904,119770.0,119760.0,0.3608]
[1759413225994,0.1182904,119770.0,119750.0,0.38264]
[1759413225995,0.1182982,119760.0,119750.0,0.38264]
[1759413226193,0.47774508,119760.0,119750.0,0.3608]
[1759413226397,0.87774508,119760.0,119750.0,0.3608]
[1759413226597,0.1183046,119750.0,119740.0,0.3608]
[1759413227087,0.5183046,119750.0,119740.0,0.3608]
[1759413227490,0.86956488,119750.0,119740.0,0.3608]
[1759413227890,0.1183113,119740.0,119730.0,0.38264]
[1759413228094,0.1183113,119740.0,119730.0,0.4661175]
[1759413228796,0.1052482,119750.0,119740.0,0.1174009]
[1759413229096,0.1180027,119760.0,119750.0,0.02125]
[1759413229286,0.1180027,119760.0,119750.0,0.38205]
[1759413229492,0.1052427,119760.0,119750.0,0.39473]
[1759413230195,0.1052427,119760.0,119750.0,0.478194]
[1759413230394,0.004,119760.0,119750.0,1.22945428]
[1759413231101,0.0834405,119790.0,119780.0,0.03393]
[1759413231291,0.0834405,119790.0,119780.0,0.39473]
[1759413231490,0.1052205,119790.0,119780.0,0.39473]
[1759413232197,0.1142205,119790.0,119780.0,0.39473]
[1759413232600,0.1212205,119790.0,119780.0,0.39473]
[1759413233104,0.1212205,119790.0,119780.0,0.4781727]
[1759413233398,0.1212205,119790.0,119780.0,0.39473]
[1759413234796,0.1212205,119790.0,119780.0,0.4781728]
[1759413235001,0.0994359,119790.0,119780.0,0.4781728]
[1759413236209,0.1212159,119790.0,119780.0,0.4781728]
[1759413237111,0.016,119790.0,119780.0,0.4781728]
[1759413237613,0.0994361,119790.0,119780.0,0.4781728]
[1759413237808,0.1212161,119790.0,119780.0,0.4781728]
[1759413238007,0.1346361,119790.0,119780.0,0.4781728]
[1759413238209,0.1212161,119790.0,119780.0,0.4781728]
[1759413239115,0.016,119790.0,119780.0,0.4781728]
[1759413239615,0.1212161,119790.0,119780.0,0.4781728]
[1759413240015,0.0994361,119790.0,119780.0,0.4781728]
[1759413240210,0.016,119790.0,119780.0,0.4781728]
[1759413240511,0.016,119790.0,119780.0,0.82943308]
[1759413240818,0.1346361,119790.0,119780.0,0.4654931]
[1759413241114,0.016,119790.0,119780.0,0.4781731]
[1759413241814,0.1186333,119800.0,119790.0,0.1046862]
[1759413242020,0.1186333,119800.0,119790.0,0.38205]
[1759413242219,0.46989358,119800.0,119790.0,0.3608]
[1759413242521,0.86989358,119800.0,119790.0,0.3608]
[1759413243212,0.87189358,119800.0,119790.0,0.3608]
[1759413244615,0.86989358,119800.0,119790.0,0.3608]
[1759413244813,0.5206333,119800.0,119790.0,0.3608]
[1759413245019,0.87189358,119800.0,119790.0,0.3608]
[1759413245717,0.87189358,119800.0,119790.0,0.4442361]
[1759413245922,0.87189358,119800.0,119790.0,0.4781661]
[1759413245923,0.1206333,119800.0,119790.0,0.4781661]
[1759413246220,0.1072133,119800.0,119790.0,0.4781661]
[1759413246625,0.002,119800.0,119790.0,0.82942638]
[1759413246813,0.002,119800.0,119790.0,0.4781661]
[1759413247824,0.002,119800.0,119790.0,0.8781661]
[1759413248327,0.02378,119800.0,119790.0,0.8781661]
[1759413249027,0.02378,119800.0,119790.0,0.4781661]
[1759413250121,0.1072091,119800.0,119790.0,0.4781661]
[1759413250320,0.002,119800.0,119790.0,0.4781661]
[1759413250820,0.002,119800.0,119790.0,0.8781661]
[1759413251026,0.002,119800.0,119790.0,1.22942638]
[1759413251223,0.002,119800.0,119790.0,0.8781661]
[1759413251422,0.002,119800.0,119790.0,1.22942638]
[1759413251726,0.002,119800.0,119790.0,0.8781661]
[1759413251921,0.002,119800.0,119790.0,1.22942638]
[1759413253223,0.002,119800.0,119790.0,0.8781661]
[1759413255227,0.002,119800.0,119790.0,1.22942638]
[1759413255525,0.002,119800.0,119790.0,0.8781661]
[1759413257827,0.1072092,119800.0,119790.0,0.4781661]
[1759413258330,0.1072092,119800.0,119790.0,0.39473]
[1759413258526,0.1072092,119800.0,119790.0,0.4781661]
[1759413261035,0.0854292,119800.0,119790.0,0.4781661]
[1759413261540,0.002,119800.0,119790.0,0.4781661]
[1759413261929,0.0854293,119800.0,119790.0,0.88897523]
[1759413262233,0.1084193,119800.0,119790.0,0.53771495]
[1759413262428,0.0854293,119800.0,119790.0,0.53771495]
[1759413263836,0.07541472,119800.0,119790.0,0.53771495]
[1759413264537,0.09864472,119800.0,119790.0,0.53771495]
[1759413264924,0.11161472,119800.0,119790.0,0.53771495]
[1759413265831,0.11161472,119800.0,119790.0,0.45427885]
[1759413266040,0.09864472,119800.0,119790.0,0.53771495]
[1759413267640,0.083428,119810.0,119800.0,0.1202293]
[1759413267831,0.083428,119810.0,119800.0,0.4810293]
[1759413268031,0.106658,119810.0,119800.0,0.3976]
[1759413268226,0.42981818,119810.0,119800.0,0.3976]
[1759413268537,0.44278818,119810.0,119800.0,0.3976]
[1759413268734,0.44278818,119810.0,119800.0,0.45714885]
[1759413269041,0.44778818,119810.0,119800.0,0.44363885]
[1759413269232,0.44778818,119810.0,119800.0,0.38409]
[1759413269734,0.0834291,119800.0,119790.0,0.3608]
[1759413269940,0.44278928,119800.0,119790.0,0.3608]
[1759413270335,0.84278928,119800.0,119790.0,0.3608]
[1759413271543,0.5196291,119800.0,119790.0,0.3608]
[1759413271745,0.84278928,119800.0,119790.0,0.3608]
[1759413272330,0.87084827,119800.0,119790.0,0.3608]
[1759413273737,0.87084827,119800.0,119780.0,0.481043]
[1759413273738,0.1196361,119790.0,119780.0,0.481043]
[1759413273939,0.09664986,119790.0,119780.0,0.54059185]
[1759413274235,0.09664986,119790.0,119780.0,0.481043]
[1759413274440,0.10961986,119790.0,119780.0,0.38409]
[1759413274936,0.46083903,119790.0,119780.0,0.38709]
[1759413275836,0.10961986,119790.0,119780.0,0.38709]
[1759413276636,0.09664986,119790.0,119780.0,0.484043]